Cogmind - Beta 9.6 @@@ ROGUE MODE // 2020.04.27 @ 18:07:13 // Winter2019/RPGLIKE Player: PhenomPhear Result: Destroyed by Z-Imprinter with Zionite Laser-M Performance ------------- Evolutions (3) 1500 Regions Visited (10) 2000 Robots Destroyed (97) 485 Value Destroyed (3141) 3141 Prototype IDs (4) 80 Alien Tech Used (0) 0 Bonus (549) 549 TOTAL SCORE: 7755 Bonus ------- High Alert Combat Kills 249 Aligned with FarCom 300 Cogmind --------- Core Integrity 0/1200 Matter 300/300 Energy 300/310 System Corruption 0% Temperature Cool (13) Movement Rolling (100) Location -7/Deep Caves Parts ------- > --- POWER (2) -------- Heavy Deuterium Engine > --- PROPULSION (2) --- Armored Huge Wheel > --- UTILITY (5) ------ Enhanced Optical Array Advanced Sensor Array Advanced Signal Interpreter Improved Terrain Scanner > --- WEAPON (3) ------- Lightning Gun Heavy Plasma Cannon > --- INVENTORY (2) ---- Improved EM Pulse Cannon Peak State ------------ > --- POWER ------------ Heavy Deuterium Engine Micro Nuclear Core > --- PROPULSION ------- Improved Carbon-fiber Leg Potential Leg > --- UTILITY ---------- Advanced Sensor Array Advanced Signal Interpreter Improved Terrain Scanner Hardened Heavy Armor Plating > --- WEAPON ----------- Lightning Gun Lightning Gun Lightning Gun > --- INVENTORY -------- High-capacity Matter Pod Gauss Cannon [Rating: 51] Favorites ----------- Power Heavy Deuterium Engine Engine Heavy Deuterium Engine Power Core Micro Nuclear Core Propulsion Improved Carbon-fiber Leg Leg Improved Carbon-fiber Leg Wheel Armored Huge Wheel Utility Improved Terrain Scanner Device Improved Terrain Scanner Processor Advanced Signal Interpreter Protection Hardened Heavy Armor Plating Weapon Lightning Gun Energy Gun Lightning Gun Energy Cannon Heavy Plasma Cannon Ballistic Gun Assault Rifle Ballistic Cannon Gauss Cannon Build | -11 -10 -10 -10 -9 -8 -7 -7 -7 -7 -7 ------- Run | Scr Mat Min Exi Min Mat Fac Low Low Zio Dee Slots Evolved 8 | 2 . . . . 4 2 . . . . Power 1 | . . . . . . 1 . . . . Propulsion 1 | . . . . . 1 . . . . . Utility 4 | . . . . . 3 1 . . . . Weapon 2 | 2 . . . . . . . . . . Parts Attached 56 | 6 . 1 2 . 8 24 3 8 1 3 Power 8 | 1 . . . . 1 5 . 1 . . Engine 4 | 1 . . . . . 3 . . . . Core 4 | . . . . . 1 2 . 1 . . Reactor . | . . . . . . . . . . . Propulsion 5 | 1 . . 1 . 1 1 . 1 . . Treads . | . . . . . . . . . . . Leg 3 | . . . 1 . 1 1 . . . . Wheel 2 | 1 . . . . . . . 1 . . Hover . | . . . . . . . . . . . Flight . | . . . . . . . . . . . Utility 20 | 1 . . 1 . 4 6 . 6 1 1 Device 9 | 1 . . 1 . 2 2 . 3 . . Storage . | . . . . . . . . . . . Processor 3 | . . . . . 1 1 . 1 . . Hackware . | . . . . . . . . . . . Protection 8 | . . . . . 1 3 . 2 1 1 Artifact . | . . . . . . . . . . . Weapon 23 | 3 . 1 . . 2 12 3 . . 2 Energy Gun 16 | 1 . 1 . . 2 8 3 . . 1 Energy Cannon 1 | . . . . . . . . . . 1 Ballistic Gun 2 | 2 . . . . . . . . . . Ballistic Cannon 4 | . . . . . . 4 . . . . Launcher . | . . . . . . . . . . . Special Weapon . | . . . . . . . . . . . Impact Weapon . | . . . . . . . . . . . Slashing Weapon . | . . . . . . . . . . . Piercing Weapon . | . . . . . . . . . . . Special Melee Weapon . | . . . . . . . . . . . Unidentified Prototypes 4 | . . . 2 . . 2 . . . . Parts Lost 4 | . . . . . 1 . . . . 3 Power . | . . . . . . . . . . . Propulsion . | . . . . . . . . . . . Utility 1 | . . . . . . . . . . 1 Weapon 3 | . . . . . 1 . . . . 2 Highest Loss Streak 3 | . . . . . 1 . . . . 3 Average Slot Usage (%) 90 | . 100 100 100 100 97 89 85 88 83 82 Engine 8 | . 16 16 16 16 4 6 8 8 8 8 Core 5 | . . . . . 6 5 8 7 . . Leg 11 | . . . 7 16 22 16 13 7 . . Wheel 2 | . 16 16 8 . . . . . 8 8 Device 17 | . 16 16 16 16 17 14 16 20 23 16 Processor 9 | . . . . . 10 8 8 15 16 16 Protection 4 | . . . . . 3 10 5 2 1 7 Energy Gun 25 | . 16 28 33 33 25 24 24 25 25 23 Ballistic Gun 3 | . 33 20 16 16 5 . . . . . Naked Turns . | . . . . . . . . . . . Heaviest Build 54 | 9 9 10 10 10 18 54 51 41 28 28 Greatest Support 48 | 16 16 16 30 30 45 48 48 28 28 28 Greatest Overweight (x) 2 | . . . . . . 1 2 2 . . Average Overweight (x) . | . . . . . . . 1 1 . . Largest Inventory Capacity 2 | 2 2 2 2 2 2 2 2 2 2 2 Average Capacity 2 | 2 2 2 2 2 2 2 2 2 2 2 Most Carried 2 | . 1 1 2 2 2 2 2 2 2 2 Average Carried 1 | . . 1 1 2 1 1 2 1 2 1 Final Capacity 2 | 2 2 2 2 2 2 2 2 2 2 2 Final Carried 2 | . 1 1 2 2 1 2 2 2 2 1 Class Distribution -------------------- 89% | Skirmisher 6% | Tank Dominant Class ---------------- Skirmisher | -10/Materials Skirmisher | -10/Mines Gunner | -10/Exiles Skirmisher | -9/Mines Skirmisher | -8/Materials Skirmisher | -7/Factory Skirmisher | -7/Lower Caves Skirmisher | -7/Lower Caves Skirmisher | -7/Zion Skirmisher | -7/Deep Caves Resources | -11 -10 -10 -10 -9 -8 -7 -7 -7 -7 -7 ----------- Run | Scr Mat Min Exi Min Mat Fac Low Low Zio Dee Matter Collected 936 | 166 . 128 23 . 149 302 58 80 . 30 Remotely . | . . . . . . . . . . . Salvage Created 3421 | 106 . . . . 1021 1221 336 451 . 286 Parts 211 | 8 . . . . 53 88 14 39 . 9 Haulers Intercepted 4 | . . . . . . 4 . . . . Recyclers Shooed 4 | . . 1 . . 2 1 . . . . Parts Field Recycled . | . . . . . . . . . . . Retrieved Matter . | . . . . . . . . . . . Parts Self-Destructed 24 | . . . . . . . 6 18 . . Prevented 16 | . . . . . . . 1 15 . . Kills | -11 -10 -10 -10 -9 -8 -7 -7 -7 -7 -7 ------- Run | Scr Mat Min Exi Min Mat Fac Low Low Zio Dee Combat Hostiles Destroyed 77 | . . . . . 21 26 8 14 . 8 Guns 56 | . . . . . 18 19 5 8 . 6 Cannons 4 | . . . . . . 2 . . . 2 AOE 6 | . . . . . 2 1 . 3 . . Classes Destroyed 17 | 2 . . . . 6 3 3 1 . 2 Worker 8 | . . . . . 2 6 . . . . Builder 2 | . . . . . 2 . . . . . Tunneler 2 | 2 . . . . . . . . . . Hauler 4 | . . . . . . 4 . . . . Recycler 2 | 1 . . . . . 1 . . . . Operator 2 | . . . . . . 2 . . . . Swarmer 21 | . . . . . 7 7 . 7 . . Grunt 18 | . . . . . 5 11 . 2 . . Sentry 10 | . . . . . 6 4 . . . . Hunter 6 | . . . . . 3 2 1 . . . Programmer 2 | . . . . . . 2 . . . . Behemoth 1 | . . . . . . . . 1 . . Z-Light 2 | . . . . . . . . . . 2 Master Thief 5 | . . . . . . . 1 4 . . Assembled 6 | . . . . . . . . . . 6 Butcher 5 | . . . . . . . 5 . . . Mutant 1 | . . . . . . . 1 . . . Best Kill Streak 10 | 2 . . . . 10 6 3 7 . 6 Combat Bots Only 10 | . . . . . 10 4 3 7 . 6 Max Kills in Single Turn 3 | 1 . . . . 2 3 2 3 . 2 Gunslinging 1 | . . . . . 1 . 1 1 . . Exploded 2 | . . . . . 1 1 . 2 . . Melee . | . . . . . . . . . . . Uniques/NPCs Destroyed . | . . . . . . . . . . . Combat | -11 -10 -10 -10 -9 -8 -7 -7 -7 -7 -7 -------- Run | Scr Mat Min Exi Min Mat Fac Low Low Zio Dee Damage Taken 4388 | . . . . . 1126 982 351 570 . 1359 Core 3213 | . . . . . 870 566 295 451 . 1031 Absorbed by Shields . | . . . . . . . . . . . Redirected to Core 2550 | . . . . . 678 507 182 416 . 767 Core Remaining (%) 85 | 100 . . . 100 56 . . . . . Volleys Fired 225 | 6 . 1 . . 50 85 26 32 . 25 Largest 3 | 3 . 3 . . 3 3 3 3 . 3 Hottest 200 | 80 . 100 . . 140 165 165 165 . 200 Shots Fired 623 | 18 . 3 . . 129 233 73 96 . 71 Gun 600 | 18 . 3 . . 129 218 73 96 . 63 Cannon 23 | . . . . . . 15 . . . 8 Launcher . | . . . . . . . . . . . Special . | . . . . . . . . . . . Kinetic 51 | 12 . 1 . . 23 15 . . . . Thermal 8 | . . . . . . . . . . 8 Explosive . | . . . . . . . . . . . Electromagnetic 564 | 6 . 2 . . 106 218 73 96 . 63 Robot Hit Streak 31 | 4 . 2 . . 21 16 13 31 . 7 Robot Miss Streak 4 | 2 . 1 . . 3 2 2 4 . 4 Penetration Max . | . . . . . . . . . . . Secondary Targets 16 | . . . . . 5 4 3 1 . 3 Max Gunslinging Chain 2 | . . . . . 2 1 2 1 . 1 Shots Hit Robots 427 | 11 . 2 . . 99 141 59 70 . 45 Core Hits 185 | 6 . 1 . . 45 66 20 27 . 20 Critical Hits 1 | . . . . . . 1 . . . . Critical Kills 1 | . . . . . . 1 . . . . Critical Parts Destroyed . | . . . . . . . . . . . Melee Attacks . | . . . . . . . . . . . Impact . | . . . . . . . . . . . Slashing . | . . . . . . . . . . . Piercing . | . . . . . . . . . . . Sneak Attacks . | . . . . . . . . . . . Combat Hostiles . | . . . . . . . . . . . Follow-up Attacks . | . . . . . . . . . . . Damage Inflicted 8602 | 116 . 13 . . 1868 3399 994 1507 . 705 Guns 6311 | 116 . 13 . . 1337 2430 939 1010 . 466 Cannons 426 | . . . . . . 187 . . . 239 Explosions 1863 | . . . . . 529 782 55 497 . . Melee . | . . . . . . . . . . . Ramming 2 | . . . . . 2 . . . . . Kinetic 468 | 90 . . . . 191 187 . . . . Thermal 1457 | . . . . . 529 137 55 497 . 239 Explosive 645 | . . . . . . 645 . . . . Electromagnetic 6030 | 26 . 13 . . 1146 2430 939 1010 . 466 Impact . | . . . . . . . . . . . Slashing . | . . . . . . . . . . . Piercing . | . . . . . . . . . . . Highest Corruption . | . . . . . . . . . . . Average Corruption . | . . . . . . . . . . . Corruption Purged . | . . . . . . . . . . . Overload Shots . | . . . . . . . . . . . Overflow Damage 154 | . . . . . 28 96 . 30 . . Projectiles . | . . . . . . . . . . . Explosions 154 | . . . . . 28 96 . 30 . . Melee . | . . . . . . . . . . . Knockbacks . | . . . . . . . . . . . Impact . | . . . . . . . . . . . Kinetic . | . . . . . . . . . . . Secondary . | . . . . . . . . . . . Self-Inflicted Damage 225 | . . . . . 42 . 42 141 . . Shots 4 | . . . . . 1 . 1 2 . . Rammed 1 | . . . . . 1 . . . . . Targets Rammed 1 | . . . . . 1 . . . . . Kicked . | . . . . . . . . . . . Crushed . | . . . . . . . . . . . Highest Temperature 306 | 54 . 39 . . 11 306 72 264 . 177 Average Temperature 75 | 23 . 24 . . 5 91 23 81 . 56 Received Heat Transfer 1059 | . . . . . 351 240 . 12 . 456 Effects 1 | . . . . . . 1 . . . . Energy Bleed 1 | . . . . . . 1 . . . . Siege Activations . | . . . . . . . . . . . Robots Corrupted 11 | . . . . . 1 4 3 3 . . Combat Hostiles 11 | . . . . . 1 4 3 3 . . Parts Fried 56 | . . . . . 7 18 13 15 . 3 Impact Corruptions . | . . . . . . . . . . . Robots Melted . | . . . . . . . . . . . Combat Hostiles . | . . . . . . . . . . . Parts Melted 1 | . . . . . . . . . . 1 Heat Transferred 1624 | . . . . . 800 150 50 400 . 224 Parts Sabotaged . | . . . . . . . . . . . Parts Stolen 6 | . . . . . . . 4 2 . . Parts Stripped . | . . . . . . . . . . . Power Chain Reactions 19 | . . . . . 8 4 1 6 . . Missiles Intercepted . | . . . . . . . . . . . Alert | -11 -10 -10 -10 -9 -8 -7 -7 -7 -7 -7 ------- Run | Scr Mat Min Exi Min Mat Fac Low Low Zio Dee Peak Influence 768 | 15 9 3 . . 449 768 . . . . Average Influence 261 | 6 9 3 . . 169 430 . . . . Maximum Alert Level 3 | . . . . . 2 3 . . . . Low Security (%) 47 | 100 100 100 . 100 64 14 . . . . Level 1 20 | . . . . . 21 29 . . . . Level 2 28 | . . . . . 13 49 . . . . Level 3 3 | . . . . . . 6 . . . . Level 4 . | . . . . . . . . . . . Level 5 . | . . . . . . . . . . . High Security . | . . . . . . . . . . . Max Security . | . . . . . . . . . . . Squads Dispatched 8 | . . . . . 2 6 . . . . Investigation 2 | . . . . . 1 1 . . . . Extermination 2 | . . . . . . 2 . . . . Reinforcement 3 | . . . . . 1 2 . . . . Assault 1 | . . . . . . 1 . . . . Garrison . | . . . . . . . . . . . Intercept . | . . . . . . . . . . . Construction Impeded 1 | . . . . . 1 . . . . . Haulers Reinforced 1 | . . . . . . 1 . . . . Stealth | -11 -10 -10 -10 -9 -8 -7 -7 -7 -7 -7 --------- Run | Scr Mat Min Exi Min Mat Fac Low Low Zio Dee Distress Signals 4 | . . . . . 3 1 . . . . Communications Jammed . | . . . . . . . . . . . Distress Signals . | . . . . . . . . . . . Times Spotted 107 | . . . . . 31 39 12 15 . 10 Peak Tracking Total 11 | . . . . . 11 5 5 4 . 4 Tactical Retreats 6 | . . . . . 2 2 . . . 2 Traps | -11 -10 -10 -10 -9 -8 -7 -7 -7 -7 -7 ------- Run | Scr Mat Min Exi Min Mat Fac Low Low Zio Dee Traps Triggered 2 | . . . . . 1 1 . . . . Indirectly . | . . . . . . . . . . . Trap Hack Attempts . | . . . . . . . . . . . Triggered . | . . . . . . . . . . . Disarmed . | . . . . . . . . . . . Reprogrammed . | . . . . . . . . . . . Reused . | . . . . . . . . . . . Traps Extracted . | . . . . . . . . . . . Installed . | . . . . . . . . . . . Triggered 3 | . . . . . . 2 . 1 . . Machines | -11 -10 -10 -10 -9 -8 -7 -7 -7 -7 -7 ---------- Run | Scr Mat Min Exi Min Mat Fac Low Low Zio Dee Machines Disabled 18 | . . . . . 1 17 . . . . Max in Single Turn 11 | . . . . . 1 11 . . . . Machines Sabotaged . | . . . . . . . . . . . Garrisons Compromised . | . . . . . . . . . . . Overloaded Fab Kills . | . . . . . . . . . . . Fab Network Shutdowns . | . . . . . . . . . . . Hacking | -11 -10 -10 -10 -9 -8 -7 -7 -7 -7 -7 --------- Run | Scr Mat Min Exi Min Mat Fac Low Low Zio Dee Machines Accessed 4 | . . . . . 2 . 1 1 . . Terminals 2 | . . . . . 2 . . . . . Fabricators . | . . . . . . . . . . . Repair Stations . | . . . . . . . . . . . Recycling Units . | . . . . . . . . . . . Scanalyzers . | . . . . . . . . . . . Garrison Access . | . . . . . . . . . . . Total Hacks 4 | . . . . . 2 . 1 1 . . Successful 4 | . . . . . 2 . 1 1 . . Failed . | . . . . . . . . . . . Catastrophic . | . . . . . . . . . . . Database Lockouts . | . . . . . . . . . . . Manual 6 | . . . 1 . 1 . . . 4 . Terminals 2 | . . . . . 2 . . . . . Fabricators . | . . . . . . . . . . . Repair Stations . | . . . . . . . . . . . Recycling Units . | . . . . . . . . . . . Scanalyzers . | . . . . . . . . . . . Garrison Access . | . . . . . . . . . . . Terminal Hacks 4 | . . . . . 2 . 1 1 . . Open Door 2 | . . . . . . . 1 1 . . Branch Access Points 1 | . . . . . 1 . . . . . Locate Traps 1 | . . . . . 1 . . . . . Fabricator Hacks . | . . . . . . . . . . . Repair Station Hacks . | . . . . . . . . . . . Recycling Unit Hacks . | . . . . . . . . . . . Scanalyzer . | . . . . . . . . . . . Garrison Access Hacks . | . . . . . . . . . . . Unauthorized Hacks . | . . . . . . . . . . . Terminals . | . . . . . . . . . . . Fabricators . | . . . . . . . . . . . Repair Stations . | . . . . . . . . . . . Recycling Units . | . . . . . . . . . . . Scanalyzers . | . . . . . . . . . . . Garrison Access . | . . . . . . . . . . . Data Cores Recovered 2 | . . . . . . 2 . . . . Used . | . . . . . . . . . . . Hacking Detections 1 | . . . . . 1 . . . . . Full Trace Events . | . . . . . . . . . . . Feedback Events . | . . . . . . . . . . . Feedback Blocked . | . . . . . . . . . . . Robot Schematics Acquired . | . . . . . . . . . . . Robots Built . | . . . . . . . . . . . Matter . | . . . . . . . . . . . Time . | . . . . . . . . . . . Total Robot Build Rating . | . . . . . . . . . . . Part Schematics Acquired . | . . . . . . . . . . . Parts Built . | . . . . . . . . . . . Matter . | . . . . . . . . . . . Time . | . . . . . . . . . . . Total Part Build Rating . | . . . . . . . . . . . Parts Repaired . | . . . . . . . . . . . Time . | . . . . . . . . . . . Parts Recycled . | . . . . . . . . . . . Recycled Matter . | . . . . . . . . . . . Retrieved Matter . | . . . . . . . . . . . Retrieved Components . | . . . . . . . . . . . Parts Scanalyzed . | . . . . . . . . . . . Part Schematics Acquired . | . . . . . . . . . . . Parts Damaged . | . . . . . . . . . . . Bothacking | -11 -10 -10 -10 -9 -8 -7 -7 -7 -7 -7 ------------ Run | Scr Mat Min Exi Min Mat Fac Low Low Zio Dee Used RIF Installer . | . . . . . . . . . . . Robots Hacked . | . . . . . . . . . . . Non-combat . | . . . . . . . . . . . Combat . | . . . . . . . . . . . Robot Hacks Applied . | . . . . . . . . . . . Relay Couplers Released . | . . . . . . . . . . . Robots Rewired 1 | . . . . . . . 1 . . . Allies Hacked . | . . . . . . . . . . . Hacks Repelled . | . . . . . . . . . . . Allies | -11 -10 -10 -10 -9 -8 -7 -7 -7 -7 -7 -------- Run | Scr Mat Min Exi Min Mat Fac Low Low Zio Dee Total Allies 1 | . . . . . . . 1 . . . Largest Group 1 | . . . . . . . 1 . . . Highest-Rated Group 64 | . . . . . . . 64 . . . Highest-Rated Ally 64 | . . . . . . . 64 . . . Total Orders . | . . . . . . . . . . . Ally Attacks 1 | . . . . . . . 1 . . . Total Damage . | . . . . . . . . . . . Kills . | . . . . . . . . . . . Allies Corrupted . | . . . . . . . . . . . Allies Melted . | . . . . . . . . . . . Intel | -11 -10 -10 -10 -9 -8 -7 -7 -7 -7 -7 ------- Run | Scr Mat Min Exi Min Mat Fac Low Low Zio Dee Robot Analysis Total . | . . . . . . . . . . . Derelict Logs Recovered 4 | . . 1 . . . . 1 1 1 . Drone Launches . | . . . . . . . . . . . Drone Recoveries . | . . . . . . . . . . . Exploration | -11 -10 -10 -10 -9 -8 -7 -7 -7 -7 -7 ------------- Run | Scr Mat Min Exi Min Mat Fac Low Low Zio Dee Turns Passed 7277 | 68 67 386 222 250 868 1650 1383 1496 640 247 Spaces Moved 4948 | 32 67 381 228 234 469 1021 886 832 639 159 Core 4 | 4 . . . . . . . . . . Treads . | . . . . . . . . . . . Legs 3437 | . . . 110 234 469 1021 886 717 . . Wheels 1507 | 28 67 381 118 . . . . 115 639 159 Hover . | . . . . . . . . . . . Flight . | . . . . . . . . . . . Fastest Speed 50 | 50 100 100 90 90 90 105 140 100 100 100 Average Speed 120 | 93 100 100 95 90 104 118 142 154 100 100 Slowest Speed 180 | 100 100 100 100 90 105 140 180 180 100 100 Overloaded Moves . | . . . . . . . . . . . Propulsion Burnouts . | . . . . . . . . . . . Robots Hopped . | . . . . . . . . . . . Cave-ins Triggered . | . . . . . . . . . . . Exploration Rate (%) 50 | 4 16 66 61 57 40 26 92 91 82 25 Regions Visited 10 Branch Regions 7 Pre-discovered Areas 1 | . . . . . . . . . 1 . Known Exits Taken 5 | . . . . . 1 1 1 1 1 . Unknown Exits Taken 5 | 1 1 1 1 1 . . . . . . Scrap Searched 9 | . . 1 . . . . 2 4 2 . Spaces Dug 2 | . . . . . . 2 . . . . Terrain Destroyed 145 | . . . . . 40 71 5 27 . 2 Melee . | . . . . . . . . . . . Projectile 5 | . . . . . . 3 . . . 2 AOE 140 | . . . . . 40 68 5 27 . . Actions | -11 -10 -10 -10 -9 -8 -7 -7 -7 -7 -7 --------- Run | Scr Mat Min Exi Min Mat Fac Low Low Zio Dee Total 5777 | 54 67 383 232 273 736 1282 947 972 640 191 Wait 386 | 11 . . . 40 182 79 . 72 . 2 Move 4938 | 31 66 380 227 233 468 1020 885 831 638 159 Hop . | . . . . . . . . . . . Pick Up 10 | . 1 . 1 . 2 1 2 3 . . Fast Attach 40 | 6 . 1 2 . 6 13 2 7 1 2 Attach 2 | . . . . . 1 . . . . 1 Detach 1 | . . . . . . 1 . . . . Swap 14 | . . . . . 1 11 1 1 . . Drop 32 | . . 1 2 . 4 15 2 7 1 . Fire 225 | 6 . 1 . . 50 85 26 32 . 25 Melee . | . . . . . . . . . . . Ram . | . . . . . . . . . . . Kick 1 | . . . . . 1 . . . . . Crush . | . . . . . . . . . . . Escape Stasis . | . . . . . . . . . . . Rewire 14 | . . . . . . . 9 5 . . Trap . | . . . . . . . . . . . Miscellaneous 114 | . . . . . 21 57 20 14 . 2 Route ------- -11/Scrapyard -10/Materials -10/Mines (discovered 3 exits: *Mat x2 / *Exi) -10/Exiles -9/Mines -8/Materials (discovered 2 exits: *Fac x2) -7/Factory (discovered 2 exits: *Fac / *Low) -7/Lower Caves (discovered 2 exits: *Low / *Zio) -7/Lower Caves (discovered 2 exits: *Fac / *Zio) -7/Zion (discovered 2 exits: *Dee / [*Pro]) -7/Deep Caves History --------- Turn | Location | Event 1 | -11/Scrapyard | Upgraded with Weapon slot (x2) 3 | -11/Scrapyard | Discovered new exit (range 15) 69 | -11/Scrapyard | Entered Materials 108 | -10/Materials | Discovered new exit (range 14) 136 | -10/Materials | Entered Mines 306 | -10/Mines | Build established: Skirmisher 363 | -10/Mines | Assembled infested the area 373 | -10/Mines | Discovered new exit (range 5) 397 | -10/Mines | Met 8R-AWN 418 | -10/Mines | Identified exit to Materials 518 | -10/Mines | Discovered new exit (range 5) 522 | -10/Mines | Entered Exiles 546 | -10/Exiles | Welcomed by 8R-AWN 564 | -10/Exiles | Met EX-HEX 592 | -10/Exiles | Met EX-BIN 604 | -10/Exiles | Aligned with FarCom system 605 | -10/Exiles | Given EX-Vault access code 630 | -10/Exiles | Opened EX-Vault 637 | -10/Exiles | Found Prototype Device 637 | -10/Exiles | Identified Trap Reconfigurator 643 | -10/Exiles | Found Prototype Leg 643 | -10/Exiles | Identified Potential Leg 663 | -10/Exiles | Warned to stay clear of 0b10 Research branches 690 | -10/Exiles | Met EX-DEC 733 | -10/Exiles | Discovered new exit (range 14) 744 | -10/Exiles | Stole two prototypes: Trap Reconfigurator, Potential Leg 744 | -10/Exiles | Entered Mines 979 | -9/Mines | Discovered new exit (range 7) 994 | -9/Mines | Entered Materials 996 | -8/Materials | Reached level 2 996 | -8/Materials | Upgraded with Propulsion slot (x1) 996 | -8/Materials | Upgraded with Utility slot (x1) 1166 | -8/Materials | Reached level 3 1193 | -8/Materials | Discovered new exit (range 8) 1203 | -8/Materials | Upgraded with Utility slot (x1) 1256 | -8/Materials | Identified exit to Factory 1609 | -8/Materials | Reached level 4 1621 | -8/Materials | Core integrity fell below 50% 1633 | -8/Materials | Upgraded with Utility slot (x1) 1675 | -8/Materials | Destroyed 10 combat bots 1846 | -8/Materials | Discovered exit to Factory (range 15) 1862 | -8/Materials | Entered Factory 1864 | -7/Factory | FarCom data flow suspended 1864 | -7/Factory | Reached level 5 1865 | -7/Factory | Upgraded with Utility slot (x1) 1875 | -7/Factory | Discovered new exit (range 15) 2122 | -7/Factory | Reached level 6 2161 | -7/Factory | Build established: Tank 2233 | -7/Factory | Discovered new exit (range 5) 2236 | -7/Factory | Identified exit to Factory 2595 | -7/Factory | Reached level 7 2597 | -7/Factory | Upgraded with Power slot (x1) 2716 | -7/Factory | Build established: Skirmisher 3120 | -7/Factory | Reached level 8 3462 | -7/Factory | First assault squad dispatched 3510 | -7/Factory | Identified exit to Lower Caves 3512 | -7/Factory | Entered Lower Caves 3514 | -7/Lower Caves | Reached level 9 3934 | -7/Lower Caves | Spotted 33-92N(f) 3936 | -7/Lower Caves | Encountered a Master Thief 3943 | -7/Lower Caves | Destroyed 33-92N(f) 4044 | -7/Lower Caves | Encountered a Warlord checkpoint 4162 | -7/Lower Caves | A Derelict revealed a hidden shortcut to a safe place 4483 | -7/Lower Caves | Spotted UZ-CD7(f) 4483 | -7/Lower Caves | Spotted YU-542(f) 4485 | -7/Lower Caves | Encountered a Master Thief 4485 | -7/Lower Caves | Encountered a Master Thief 4485 | -7/Lower Caves | Potential Leg stolen by Master Thief 4490 | -7/Lower Caves | Lightning Gun stolen by Master Thief 4515 | -7/Lower Caves | Spotted YA-Z20(f) 4516 | -7/Lower Caves | Encountered a Master Thief 4517 | -7/Lower Caves | Hrd. Heavy Armor Plating stolen by Master Thief 4519 | -7/Lower Caves | Spotted YD-QPT(f) 4520 | -7/Lower Caves | Encountered a Master Thief 4523 | -7/Lower Caves | Lightning Gun stolen by Master Thief 4534 | -7/Lower Caves | Rewired YD-QPT(f) 4662 | -7/Lower Caves | Discovered new exit (range 12) 4685 | -7/Lower Caves | Learned 4 Factory zone layouts 4704 | -7/Lower Caves | Identified exit to Lower Caves 4737 | -7/Lower Caves | Attacked by a faux Warlord 4895 | -7/Lower Caves | Entered another Lower Caves area 4943 | -7/Lower Caves | Discovered exit to Factory (range 8) 5099 | -7/Lower Caves | Spotted 4H-6UG(f) 5100 | -7/Lower Caves | Encountered a Master Thief 5107 | -7/Lower Caves | Destroyed 4H-6UG(f) 5134 | -7/Lower Caves | Spotted RU-61V(f) 5135 | -7/Lower Caves | Encountered a Master Thief 5137 | -7/Lower Caves | Energy Filter stolen by Master Thief 5138 | -7/Lower Caves | Destroyed RU-61V(f) 5138 | -7/Lower Caves | Spotted W7-80D(f) 5139 | -7/Lower Caves | Encountered a Master Thief 5153 | -7/Lower Caves | Destroyed W7-80D(f) 5224 | -7/Lower Caves | Learned location of 1 exit from Proximity Caves 5451 | -7/Lower Caves | Spotted B-75 Beast 5470 | -7/Lower Caves | Destroyed B-75 Beast 6168 | -7/Lower Caves | Reached level 10 6220 | -7/Lower Caves | Destroyed 7 combat bots 6229 | -7/Lower Caves | Discovered new exit (range 6) 6368 | -7/Lower Caves | Identified exit to Zion 6370 | -7/Lower Caves | Spotted IZ-RJA(f) 6371 | -7/Lower Caves | Encountered a Master Thief 6372 | -7/Lower Caves | Spotted AD-7RQ(f) 6373 | -7/Lower Caves | Encountered a Master Thief 6375 | -7/Lower Caves | Neutrino Core stolen by Master Thief 6388 | -7/Lower Caves | Destroyed AD-7RQ(f) 6391 | -7/Lower Caves | Entered Zion 6425 | -7/Zion | Discovered new exit (range 23) 6619 | -7/Zion | Learned location of Warlord (-4) 6682 | -7/Zion | Learned location of 1 exit from Lower Caves 6799 | -7/Zion | Acquired unknown access codes intercepted by a Zionite 6887 | -7/Zion | Discovered new exit (range 9) 6890 | -7/Zion | Opened final containment barrier to the Deep Caves 7027 | -7/Zion | Saw the warning signs outside the Deep Caves entrance 7030 | -7/Zion | Identified exit to Deep Caves 7031 | -7/Zion | Entered Deep Caves 7033 | -7/Deep Caves | Reached level 11 7236 | -7/Deep Caves | Attacked by Z-Imprinter 7252 | -7/Deep Caves | Core integrity fell below 50% 7266 | -7/Deep Caves | Core integrity fell below 20% 7278 | -7/Deep Caves | Destroyed by Z-Imprinter with Zionite Laser-M Last Messages --------------- 07070_ as-90941 destroyed. 07074_ Used Protomatter to restore core integrity (+24, depleted) 07075_ Acquired 28 matter. 07078_ Used Protomatter to restore core integrity (+9, depleted) 07085_ Destroyed Asb. Hover Unit. 07085_ as-35236 destroyed. 07108_ Acquired 2 matter. 07229_ NEW_ZION: Z-Facility proximity alert. Z-Imprinter: GET AWAY FROM HERE! I've worked too hard for our future just to have you ruin everything! 07251_ Lightning Gun destroyed. 07263_ Phase Shifter fried. 07263_ Prototype Hover Unit fried. 07263_ 75-U8E(z) destroyed. 07265_ Lightning Gun destroyed. 07269_ TP-DXD(z) IFF system glitched. 07271_ Imp. Light Armor Plating destroyed. 07276_ Imp. Maneuvering Thrusters melted. 07276_ Prototype Energy Gun fried. 07276_ TP-DXD(z) destroyed. Map ----- +----------------------------------------------------+ | | | | | | | | | | | | | | | | | | | | | | | | | | | | | | | | | | | | | ???????????##?###################?####?###??#??### | | ####???????##?#?##??##?#?###?###?########?#?###??? | | ??? ??###?##########?#######?############### | | ?###?###################?##### ##### | | ##?### #### ############?### ###? | | ## # # ;;# ######## ##? | | #;;;; ###### ## | | @ ##### # | | ##### ## | | ####### #### | | ;############# | | """""" ;#######?# #### | | ??"""""" !!######## #### | | ????"""" !%I #??## | | ????"""" != ####### | | ????" *%! ######## | | ???""""" ! #### ######## | | ???""""" #;#### ####### | | ???""""" ####### ##?#### | | ?????""" ###?## ######? | | ????? " ###### ######## | | ????o o ##?## ####### | | ???? ###?## #### | | ????o ###??## ### "" | | ???" ##??#### ### """ | | ????"" #???#### ## " | | ??????""o ???#?## # | | ????????? ##??### ##### | | ??????????? ######?## ##### | | ?????????????? #?####??### #### | | ??????????????? ?#?######### ### | | ????????????????? ?########### ## | +----------------------------------------------------+ Best States ------------- Heat Dissipation 73 Energy Generation 42 Energy Capacity 525 Matter Stores 300 Matter Capacity 300 Sight Range 24 Robot Scan Range 28 Terrain Scan Range 16 Terrain Scan Density 210 Armor Coverage 750 Resistance: KI 10 Resistance: TH 20 Melee Speed Boost 30 Evasion (%) 42 Energy Filtering 30 Force Boost 3 Item Schematics ----------------- None Robot Schematics ------------------ None Fabricated ------------ Nothing Alien Tech Used ----------------- None Achievements -------------- None Challenges ------------ None RPGLIKE | -11 -10 -10 -10 -9 -8 -7 -7 -7 -7 -7 --------- Run | Scr Mat Min Exi Min Mat Fac Low Low Zio Dee Levels Raised 10 | . . . . . 3 4 1 1 . 1 XP Earned 18748 | 3000 . 500 350 500 4371 6227 650 1650 500 1000 XP Spent 17935 | 3000 . . . . 4385 5585 1940 . 1400 1625 Upgrades 56 | 7 . . . . 19 17 7 . 2 4 Power Slot 1 | . . . . . . 1 . . . . Propulsion Slot 1 | . . . . . 1 . . . . . Utility Slot 4 | . . . . . 3 1 . . . . Weapon Slot 2 | 2 . . . . . . . . . . Core Integrity 12 | . . . . . 7 . 4 . . 1 Heat Dissipation 8 | . . . . . 5 2 . . . 1 Energy Generation 2 | . . . . . . 2 . . . . Inventory Capacity 2 | 2 . . . . . . . . . . Sight Range 2 | . . . . . . 1 . . 1 . Sensor Range 6 | . . . . . . 6 . . . . Terrain Scan Density 2 | 1 . . . . . 1 . . . . Ranged Accuracy 4 | 2 . . . . . 2 . . . . KI Resistance % 2 | . . . . . 1 1 . . . . TH Resistance % 4 | . . . . . 2 . . . . 2 TH Damage % 4 | . . . . . . . 3 . 1 . Protomatter Created 1132 | . . . . . 216 595 181 129 . 11 Integrity Restored 2465 | . . . . . 456 1277 422 277 . 33 Core 2004 | . . . . . 456 953 322 240 . 33 Parts 461 | . . . . . . 324 100 37 . . Protomatter Decayed 278 | . . . . . 48 167 . 63 . . Game ------ Seed IntegrationMediumCleaver Manual? 0 Play Time 00:45:36 Cumulative 1031.2 hours Start 2020.04.27 @ 17:22:36 End 2020.04.27 @ 18:07:13 Sessions 1 Manual Loads 0 Difficulty Rogue Special Mode Winter2019/RPGLIKE Game No. 622 Rogue 622 Adventurer 0 Explorer 0 Win Type - Total 18 Types 10/1/4/3/0/0/0 Lore% 89 Gallery% 94 Achievement% 80 Wizard Run 0 Options --------- ASCII 0 Keyboard 0 Movement Mouse Keybinds 0 Fullscreen 2 Font 24/Crisp Map View 76x50 Tactical HUD 1 Map Filters NONE Filters NONE Steam 1 RUN: 2900401f-c6dc-4bb9-a3d6-1ac88a682c24